fUSD/lending_fUSD_20250331
["ID","MTS","AMOUNT","RATE_DAILY","PERIOD"]
[356923006,1743433905335,-500.0,0.00050957,120]
[356923007,1743433905346,-529.2,0.00050957,120]
[356923008,1743433905357,-500.0,0.00050957,120]
[356923009,1743433905367,-797.5,0.00050957,120]
[356923010,1743433905377,-500.0,0.00050957,120]
[356923011,1743433905387,-693.83,0.00050957,120]
[356923012,1743433905397,-526.71,0.00050957,120]
[356923013,1743433905407,-1569.73,0.00050957,120]
[356923014,1743433905416,-500.0,0.00050957,100]
[356923015,1743433905426,-500.0,0.00050957,120]
[356923016,1743433905435,-500.0,0.00050957,120]
[356923017,1743433905445,-1468.67,0.00050957,120]
[356923018,1743433905454,-770.37,0.00050957,120]
[356923019,1743433905463,-500.0,0.00050957,120]
[356923020,1743433905473,-594.94,0.00050957,120]
[356923021,1743433905482,-500.0,0.00050957,120]
[356923022,1743433905491,-500.0,0.00050958,120]
[356923023,1743433905501,-500.0,0.00050958,120]
[356923024,1743433905511,-500.0,0.00050958,120]
[356923025,1743433905520,-500.0,0.00050958,120]
[356923026,1743433905530,-500.0,0.00050958,120]
[356923027,1743433905539,-244.82617972,0.00050958,120]
[356923028,1743433905549,-500.0,0.00050958,120]
[356923029,1743433905559,-500.0,0.00050958,120]
[356923030,1743433905570,-745.34,0.00050958,120]
[356923031,1743433905579,-500.0,0.00050958,120]
[356923032,1743433905588,-500.0,0.00050958,120]
[356923033,1743433905598,-500.0,0.00050958,120]
[356923034,1743433905608,-500.0,0.00050958,120]
[356923035,1743433905617,-443.41799355,0.00050958,120]
[356923036,1743433905627,-500.0,0.00050958,120]
[356923037,1743433905637,-500.0,0.00050958,120]
[356923038,1743433905647,-500.0,0.00050958,120]
[356923039,1743433905657,-500.0,0.00050958,120]
[356923040,1743433905666,-500.0,0.00050958,120]
[356923041,1743433905676,-497.72,0.00050958,120]
[356923042,1743433905686,-847.49,0.00050958,120]
[356923043,1743433905697,-500.0,0.00050958,120]
[356923044,1743433905707,-853.55,0.00050958,120]
[356923045,1743433905717,-500.0,0.00050958,120]
[356923046,1743433905735,-17747.14,0.00050958,7]
[356923047,1743433905748,-500.0,0.00050958,120]
[356923048,1743433905828,-500.0,0.00050958,120]
[356923049,1743433905839,-500.0,0.00050958,120]
[356923050,1743433905850,-500.0,0.00050958,120]
[356923051,1743433905860,-524.67686867,0.00050958,120]
[356923052,1743433905870,-500.0,0.00050958,120]
[356923053,1743433905881,-835.81,0.00050958,120]
[356923054,1743433905890,-569.73933533,0.00050958,120]
[356923055,1743433905900,-1000.0,0.00050959,20]
[356923056,1743433905910,-20000.0,0.00051,7]
[356923057,1743433905919,-248.3351789,0.00051077,16]
[356923058,1743433905929,-1000.0,0.00051096,20]
[356923059,1743433905939,-500.0,0.00051132,120]
[356923060,1743433905950,-507.46,0.00051132,120]
[356923061,1743433905960,-500.0,0.00051132,120]
[356923062,1743433905970,-566.31,0.00051132,120]
[356923063,1743433905980,-903.86,0.00051132,120]
[356923064,1743433905989,-567.44,0.00051132,120]
[356923065,1743433905999,-500.0,0.00051132,120]
[356923066,1743433906009,-500.0,0.00051132,120]
[356923067,1743433906019,-503.32,0.00051132,120]
[356923068,1743433906030,-500.0,0.00051132,120]
[356923069,1743433906042,-447.0897692,0.00051132,120]
[356923070,1743433906052,-660.31,0.00051132,120]
[356923071,1743433906063,-500.0,0.00051132,120]
[356923072,1743433906073,-500.0,0.00051208,2]
[356923073,1743433906083,-500.0,0.00051208,2]
[356923074,1743433906093,-500.0,0.00051231,120]
[356923075,1743433906102,-529.2,0.00051231,120]
[356923076,1743433906112,-500.0,0.00051231,120]
[356923077,1743433906123,-797.5,0.00051231,120]
[356923078,1743433906134,-500.0,0.00051231,120]
[356923079,1743433906144,-693.83,0.00051231,120]
[356923080,1743433906154,-526.71,0.00051231,120]
[356923081,1743433906163,-1569.73,0.00051231,120]
[356923082,1743433906173,-500.0,0.00051231,100]
[356923083,1743433906183,-500.0,0.00051231,120]
[356923084,1743433906192,-500.0,0.00051231,120]
[356923085,1743433906202,-1468.67,0.00051231,120]
[356923086,1743433906212,-770.37,0.00051231,120]
[356923087,1743433906222,-519.63924351,0.00051231,120]
[356923088,1743433906232,-594.94,0.00051231,120]
[356923089,1743433906242,-285.56,0.00051231,120]
[356923090,1743433906252,-151.45,0.00051232,120]
[356923091,1743433906262,-632.0,0.00051232,120]
[356923092,1743433906271,-500.0,0.00051232,120]
[356923093,1743433906281,-500.0,0.00051232,120]
[356923094,1743433906291,-392.55,0.00051232,120]
[356923095,1743433906300,-500.0,0.00051232,120]
[356923096,1743433906310,-500.0,0.00051232,120]
[356923097,1743433906320,-745.34,0.00051232,120]
[356923098,1743433906329,-500.0,0.00051232,120]
[356923099,1743433906339,-500.0,0.00051232,120]
[356923100,1743433906350,-216.9098454,0.00051232,120]
[356923101,1743433906360,-635.28870188,0.00051232,120]
[356923102,1743433906371,-500.0,0.00051232,120]
[356923103,1743433906380,-500.0,0.00051232,120]
[356923104,1743433906390,-500.0,0.00051232,120]
[356923105,1743433906400,-500.0,0.00051232,120]
[356923106,1743433906409,-500.0,0.00051232,120]
[356923107,1743433906419,-847.49,0.00051232,120]
[356923108,1743433906429,-500.0,0.00051232,120]
[356923109,1743433906438,-853.55,0.00051232,120]
[356923110,1743433906448,-500.0,0.00051232,120]
[356923111,1743433906458,-17747.14,0.00051232,7]
[356923112,1743433906467,-500.0,0.00051232,120]
[356923113,1743433906477,-500.0,0.00051232,120]
[356923114,1743433906487,-500.0,0.00051232,120]
[356923115,1743433906497,-152.05696119,0.00051232,120]
[356923116,1743433906507,-500.0,0.00051232,120]
[356923117,1743433906517,-835.81,0.00051232,120]
[356923118,1743433906526,-1000.0,0.00051233,20]
[356923119,1743433906536,-1000.0,0.0005137,20]
[356923120,1743433906545,-20000.0,0.000514,7]
[356923121,1743433906555,-500.0,0.00051406,120]
[356923122,1743433906565,-507.46,0.00051406,120]
[356923123,1743433906575,-500.0,0.00051406,120]
[356923124,1743433906585,-566.31,0.00051406,120]
[356923125,1743433906595,-903.86,0.00051406,120]
[356923126,1743433906604,-567.44,0.00051406,120]
[356923127,1743433906614,-500.0,0.00051406,120]
[356923128,1743433906624,-160.81359517,0.00051406,120]
[356923129,1743433906633,-441.44307566,0.00051406,120]
[356923130,1743433906643,-660.31,0.00051406,120]
[356923131,1743433906653,-500.0,0.00051406,120]
[356923132,1743433906662,-500.0,0.00051482,2]
[356923133,1743433906672,-500.0,0.00051482,2]
[356923134,1743433906681,-540.9899441,0.00051496,120]
[356923135,1743433906691,-500.0,0.00051505,120]
[356923136,1743433906701,-529.2,0.00051505,120]
[356923137,1743433906711,-500.0,0.00051505,120]
[356923138,1743433906721,-797.5,0.00051505,120]
[356923139,1743433906731,-500.0,0.00051505,120]
[356923140,1743433906741,-693.83,0.00051505,120]
[356923141,1743433906751,-526.71,0.00051505,120]
[356923142,1743433906760,-1569.73,0.00051505,120]
[356923143,1743433906770,-500.0,0.00051505,100]
[356923144,1743433906780,-500.0,0.00051505,120]
[356923145,1743433906789,-500.0,0.00051505,120]
[356923146,1743433906799,-1468.67,0.00051505,120]
[356923147,1743433906808,-770.37,0.00051505,120]
[356923148,1743433906819,-594.94,0.00051505,120]
[356923149,1743433906829,-500.0,0.00051506,120]
[356923150,1743433906839,-500.0,0.00051506,120]
[356923151,1743433906848,-500.0,0.00051506,120]
[356923152,1743433906858,-500.0,0.00051506,120]
[356923153,1743433906869,-745.34,0.00051506,120]
[356923154,1743433906878,-500.0,0.00051506,120]
[356923155,1743433906889,-500.0,0.00051506,120]
[356923156,1743433906899,-500.0,0.00051506,120]
[356923157,1743433906908,-500.0,0.00051506,120]
[356923158,1743433906917,-500.0,0.00051506,120]
[356923159,1743433906927,-500.0,0.00051506,120]
[356923160,1743433906936,-500.0,0.00051506,120]
[356923161,1743433906946,-847.49,0.00051506,120]
[356923162,1743433906955,-390.26404927,0.00051506,120]
[356923163,1743433906964,-853.55,0.00051506,120]
[356923164,1743433906974,-500.0,0.00051506,120]
[356923165,1743433906983,-17747.14,0.00051506,7]
[356923166,1743433906993,-500.0,0.00051506,120]
[356923167,1743433907002,-500.0,0.00051506,120]
[356923168,1743433907011,-500.0,0.00051506,120]
[356923169,1743433907021,-500.0,0.00051506,120]
[356923170,1743433907030,-835.81,0.00051506,120]
[356923171,1743433907039,-1000.0,0.00051507,20]
[356923172,1743433907051,-1000.0,0.00051644,20]
[356923173,1743433907060,-1300.24,0.0005165,2]
[356923174,1743433907138,-500.0,0.0005168,120]
[356923175,1743433907149,-507.46,0.0005168,120]
[356923176,1743433907158,-500.0,0.0005168,120]
[356923177,1743433907168,-566.31,0.0005168,120]
[356923178,1743433907178,-903.86,0.0005168,120]
[356923179,1743433907187,-567.44,0.0005168,120]
[356923180,1743433907197,-500.0,0.0005168,120]
[356923181,1743433907206,-660.31,0.0005168,120]
[356923182,1743433907215,-500.0,0.0005168,120]
[356923183,1743433907225,-2002.7149,0.00051713,3]
[356923184,1743433907234,-2000.0,0.00051713,3]
[356923185,1743433907245,-2005.2079,0.00051713,3]
[356923186,1743433907254,-500.0,0.00051756,2]
[356923187,1743433907263,-524.71103216,0.00051756,2]
[356923188,1743433907272,-500.0,0.00051756,2]
[356923189,1743433907281,-500.0,0.00051779,120]
[356923190,1743433907290,-529.2,0.00051779,120]
[356923191,1743433907300,-269.83,0.00051779,120]
[356923192,1743433907309,-797.5,0.00051779,120]
[356923193,1743433907319,-500.0,0.00051779,120]
[356923194,1743433907329,-693.83,0.00051779,120]
[356923195,1743433907338,-526.71,0.00051779,120]
[356923196,1743433907348,-1569.73,0.00051779,120]
[356923197,1743433907358,-500.0,0.00051779,100]
[356923198,1743433907367,-246.08,0.00051779,120]
[356923199,1743433907376,-500.0,0.00051779,120]
[356923200,1743433907386,-1468.67,0.00051779,120]
[356923201,1743433907394,-770.37,0.00051779,120]
[356923202,1743433907403,-594.94,0.00051779,120]
[356923203,1743433907412,-500.0,0.0005178,120]
[356923204,1743433907421,-500.0,0.0005178,120]
[356923205,1743433907430,-500.0,0.0005178,120]
[356923206,1743433907439,-500.0,0.0005178,120]
[356923207,1743433907448,-745.34,0.0005178,120]
[356923208,1743433907457,-606.16,0.0005178,120]
[356923209,1743433907467,-500.0,0.0005178,120]
[356923210,1743433907476,-520.00088757,0.0005178,120]
[356923211,1743433907485,-500.0,0.0005178,120]
[356923212,1743433907494,-500.0,0.0005178,120]
[356923213,1743433907503,-500.0,0.0005178,120]
[356923214,1743433907512,-500.0,0.0005178,120]
[356923215,1743433907521,-847.49,0.0005178,120]
[356923216,1743433907530,-853.55,0.0005178,120]
[356923217,1743433907539,-500.0,0.0005178,120]
[356923218,1743433907548,-6347.90156357,0.0005178,7]
[356923219,1743433907731,-500.0,0.00047944,120]
[356923220,1743433907740,-501.76917533,0.00047944,120]
[356923221,1743433907750,-500.0,0.00047944,120]
[356923222,1743433907759,-508.25011158,0.00047944,120]
[356923223,1743433907770,-500.0,0.00048217,120]
[356923224,1743433907780,-500.0,0.00048218,120]
[356923225,1743433907790,-500.0,0.00048218,120]
[356923226,1743433907800,-500.0,0.00048239,120]
[356923227,1743433907811,-500.0,0.00048491,120]
[356923228,1743433907823,-500.0,0.00048492,120]
[356923229,1743433907833,-500.0,0.00048492,120]
[356923230,1743433907842,-547.1402321,0.00048492,120]
[356923231,1743433907852,-500.0,0.00048513,120]
[356923232,1743433907862,-500.0,0.00048765,120]
[356923233,1743433907872,-500.0,0.00048766,120]
[356923234,1743433907881,-500.0,0.00048766,120]
[356923235,1743433907891,-500.0,0.00048787,120]
[356923236,1743433907901,-500.0,0.00049039,120]
[356923237,1743433907910,-511.91449639,0.0004904,120]
[356923238,1743433907920,-500.0,0.00049313,120]
[356923239,1743433907930,-500.0,0.00049314,120]
[356923240,1743433907940,-500.0,0.00049587,120]
[356923241,1743433907950,-500.0,0.00049588,120]
[356923242,1743433907959,-500.0,0.00049861,120]
[356923243,1743433907968,-500.0,0.00049862,120]
[356923244,1743433907978,-500.0,0.00050135,120]
[356923245,1743433907987,-526.5,0.00050136,120]
[356923246,1743433907997,-500.0,0.00050409,120]
[356923247,1743433908007,-516.09122449,0.00050683,120]
[356923248,1743433908016,-11399.23843643,0.0005178,7]
[356923249,1743433908026,-395.28,0.0005178,120]
[356923250,1743433908038,-500.0,0.0005178,120]
[356923251,1743433908053,-360.3404337,0.0005178,120]
[356923252,1743433908062,-500.0,0.0005178,120]
[356923253,1743433908078,-835.81,0.0005178,120]
[356923254,1743433908090,-1000.0,0.00051781,20]
[356923255,1743433908101,-200.0,0.00051832,120]
[356923256,1743433908112,-1000.0,0.00051918,20]
[356923257,1743433908122,-500.0,0.00051954,120]
[356923258,1743433908134,-507.46,0.00051954,120]
[356923259,1743433908145,-622.60832382,0.00051954,120]
[356923260,1743433908157,-566.31,0.00051954,120]
[356923261,1743433908167,-903.86,0.00051954,120]
[356923262,1743433908178,-567.44,0.00051954,120]
[356923263,1743433908188,-492.86,0.00051954,120]
[356923264,1743433908198,-660.31,0.00051954,120]
[356923265,1743433908208,-500.0,0.00051954,120]
[356923266,1743433908218,-210.0,0.0005197,2]
[356923267,1743433908228,-210.0,0.0005197,2]
[356923268,1743433908238,-211.0,0.0005197,2]
[356923269,1743433908248,-6680.53756615,0.00052,2]
[356923270,1743433929323,-500.0,0.00049061,120]
[356923271,1743433929334,-9078.46243385,0.00052,2]
[356923272,1743433929344,-250.0,0.00052,20]
[356923273,1743433929354,-151.0,0.00052,120]
[356923274,1743433929363,-152.0,0.00052023,4]
[356923275,1743433929372,-500.0,0.0005203,2]
[356923276,1743433929382,-653.62596156,0.0005203,2]
[356923277,1743433929392,-529.2,0.00052053,120]
[356923278,1743433929402,-797.5,0.00052053,120]
[356923279,1743433929412,-500.0,0.00052053,120]
[356923280,1743433929422,-693.83,0.00052053,120]
[356923281,1743433929432,-526.71,0.00052053,120]
[356923282,1743433929442,-1569.73,0.00052053,120]
[356923283,1743433929452,-500.0,0.00052053,100]
[356923284,1743433929462,-500.0,0.00052053,120]
[356923285,1743433929473,-1468.67,0.00052053,120]
[356923286,1743433929482,-770.37,0.00052053,120]
[356923287,1743433929493,-594.94,0.00052053,120]
[356923288,1743433929503,-500.0,0.00052054,120]
[356923289,1743433929513,-500.0,0.00052054,120]
[356923290,1743433929523,-500.0,0.00052054,120]
[356923291,1743433929532,-500.0,0.00052054,120]
[356923292,1743433929542,-745.34,0.00052054,120]
[356923293,1743433929552,-500.0,0.00052054,120]
[356923294,1743433929562,-500.0,0.00052054,120]
[356923295,1743433929571,-500.0,0.00052054,120]
[356923296,1743433929581,-500.0,0.00052054,120]
[356923297,1743433929594,-165.87544736,0.00052054,120]
[356923298,1743433929604,-847.49,0.00052054,120]
[356923299,1743433929614,-853.55,0.00052054,120]
[356923300,1743433929702,-500.0,0.00052054,120]
[356923301,1743433929712,-5225.8451362,0.00052054,7]
[356923302,1743433929814,-500.0,0.00047844,120]
[356923303,1743433929824,-514.297339,0.00052054,7]
[356923304,1743433929846,-264.63653651,0.00047944,120]
[356923305,1743433929858,-235.36346349,0.00047944,120]
[356923306,1743433929868,-500.0,0.00049335,120]
[356923307,1743433929878,-5909.00035077,0.00052054,7]
[356923308,1743433929890,-561.77957128,0.00052054,7]
[356923309,1743433929902,-4300.77360684,0.00052054,7]
[356923310,1743433929913,-1235.44399591,0.00052054,7]
[356923311,1743433929923,-500.0,0.00052054,120]
[356923312,1743433929932,-335.26,0.00052054,120]
[356923313,1743433929942,-835.81,0.00052054,120]
[356923314,1743433929952,-1000.0,0.00052055,20]
[356923315,1743433929962,-587.0,0.00052055,20]
[356923316,1743433929972,-25333.88672967,0.000521,2]
[356923317,1743433929981,-15468.01785486,0.000522,2]
[356923318,1743433930043,-2500.0,0.00047834,2]
[356923319,1743433930053,-500.0,0.00048118,120]
[356923320,1743433930066,-500.0,0.00048218,120]
[356923321,1743433930076,-500.0,0.00048392,120]
[356923322,1743433930087,-500.0,0.00048492,120]
[356923323,1743433930097,-500.0,0.00048666,120]
[356923324,1743433930107,-478.52,0.00048766,120]
[356923325,1743433930118,-500.0,0.00049609,120]
[356923326,1743433930128,-10776.576213,0.000522,2]
[356923327,1743433930141,-3483.23807632,0.000522,2]
[356923328,1743433930154,-30643.72508803,0.000522,2]
[356923329,1743433930179,-17165.54276779,0.000522,2]
[356923330,1743433930188,-232.81226,0.000522,120]
[356923331,1743433930199,-500.0,0.00052228,120]
[356923332,1743433930209,-507.46,0.00052228,120]
[356923333,1743433930218,-566.31,0.00052228,120]
[356923334,1743433930229,-903.86,0.00052228,120]
[356923335,1743433930239,-567.44,0.00052228,120]
[356923336,1743433930248,-660.31,0.00052228,120]
[356923337,1743433930258,-159.48,0.00052228,120]
[356923338,1743433930267,-480.77834817,0.00052229,15]
[356923339,1743433930277,-62032.05325961,0.00052278,8]
[356923340,1743433930289,-1447.23729483,0.00052278,8]
[356923341,1743433930307,-4947.60620979,0.00052278,8]
[356923342,1743433930319,-582.8810972,0.00052278,8]
[356923343,1743433930331,-342.6192,0.00052278,8]
[356923344,1743433930345,-2429.6131,0.00052278,8]
[356923345,1743433930543,-1157.83983857,0.00052278,8]
[356923346,1743433930554,-68916.79,0.00052278,8]
[356923347,1743433930564,-500.0,0.00052304,2]
[356923348,1743433930574,-529.2,0.00052327,120]
[356923349,1743433930583,-797.5,0.00052327,120]
[356923350,1743433930595,-500.0,0.00052327,120]
[356923351,1743433930606,-693.83,0.00052327,120]
[356923352,1743433930616,-526.71,0.00052327,120]
[356923353,1743433930626,-1569.73,0.00052327,120]
[356923354,1743433930636,-500.0,0.00052327,100]
[356923355,1743433930646,-500.0,0.00052327,120]
[356923356,1743433930656,-1468.67,0.00052327,120]
[356923357,1743433930665,-770.37,0.00052327,120]
[356923358,1743433930675,-594.94,0.00052327,120]
[356923359,1743433930685,-500.0,0.00052328,120]
[356923360,1743433930695,-500.0,0.00052328,120]
[356923361,1743433930704,-500.0,0.00052328,120]
[356923362,1743433930714,-500.0,0.00052328,120]
[356923363,1743433930724,-745.34,0.00052328,120]
[356923364,1743433930734,-179.16277601,0.00052328,120]
[356923365,1743433930744,-500.0,0.00052328,120]
[356923366,1743433930753,-245.81,0.00052328,120]
[356923367,1743433930763,-305.57067178,0.00052328,120]
[356923368,1743433930773,-853.55,0.00052328,120]
[356923369,1743433930783,-500.0,0.00052328,120]
[356923370,1743433930792,-17747.14,0.00052328,7]
[356923371,1743433930802,-500.0,0.00052328,120]
[356923372,1743433930812,-835.81,0.00052328,120]
[356923373,1743433930822,-393.0,0.00052457,30]
[356923374,1743433930832,-500.0,0.00052502,120]
[356923375,1743433930844,-507.46,0.00052502,120]
[356923376,1743433930853,-566.31,0.00052502,120]
[356923377,1743433930863,-903.86,0.00052502,120]
[356923378,1743433930873,-567.44,0.00052502,120]
[356923379,1743433930883,-660.31,0.00052502,120]
[356923380,1743433930893,-500.0,0.00052519,60]
[356923381,1743433930902,-500.0,0.00052578,2]
[356923382,1743433930912,-15988.80553483,0.000526,2]
[356923383,1743433930924,-1171.44888574,0.000526,2]
[356923384,1743433930978,1000.0,0.00033753,120]
[356923385,1743433931044,1023.68904861,0.00033753,120]
[356923386,1743433934464,-237.35,0.00046474,2]
[356923387,1743433935561,-237.35,0.00047843,4]
[356923388,1743433936048,-237.35,0.00047844,120]
[356923389,1743433962608,150.0,0.00033753,30]
[356923391,1743434642746,-150.0,0.00026849,2]
[356923392,1743434708591,627.55927627,0.00033782,90]
[356923393,1743434710922,-329.72,0.00015,2]
[356923394,1743434710979,999.999996,0.00033782,120]
[356923395,1743434712918,478.71815245,0.00033782,91]
[356923396,1743434712977,486.94135227,0.00033782,30]
[356923397,1743434717698,-151.0,0.00015,2]
[356923398,1743434720064,592.4646237,0.00033782,120]
[356923399,1743434721041,1972.47833054,0.00033782,120]
[356923400,1743434721984,1076.22426829,0.00033782,120]
[356923401,1743434724073,402.59230063,0.00033782,120]
[356923402,1743434727230,823.54280358,0.00033782,30]
[356923403,1743434728637,1937.62166761,0.00033782,30]
[356923404,1743434729319,696.35828129,0.00033782,30]
[356923405,1743434736687,-158.42,0.00046864,120]
[356923406,1743434736714,-9.62405876,0.00047082,120]
[356923407,1743434737575,265.54652698,8e-05,2]
[356923408,1743434737635,787.52065003,8e-05,2]
[356923409,1743434738741,160.93215626,0.00033782,120]
[356923410,1743434740901,1323.62388363,0.00033782,120]
[356923411,1743434742582,928.26079427,0.00033782,120]
[356923412,1743434744845,1600.30169354,0.00033782,120]
[356923413,1743434747809,347.27375084,0.00033782,120]
[356923414,1743434754008,-161.44191272,0.00014925,2]
[356923415,1743434756181,949.92777875,0.0001489,2]
[356923416,1743434756688,2194.9156418,6.94e-05,2]
[356923417,1743434762518,597.25361049,0.00033782,90]
[356923418,1743434763154,-216.77930722,0.00014925,2]
[356923419,1743434766866,559.71561914,0.00033782,120]
[356923420,1743434769950,822.99448094,0.00033782,120]
[356923421,1743434771175,200.90232345,0.00033782,60]
[356923422,1743434774946,273.9837557,0.00033782,30]
[356923423,1743434776189,1901.44234046,0.00033782,120]
[356923424,1743434778385,208.27498354,0.00033782,120]
[356923425,1743434784349,1901.10926561,0.00033782,120]
[356923426,1743434789686,1210.86068944,0.00033782,120]
[356923427,1743434790303,-263.204198,0.00014925,2]
[356923428,1743434793245,199.41086217,0.00033782,60]
[356923429,1743434815922,215.79621021,0.00033782,120]
[356923431,1743434823159,1821.42447193,0.00033782,120]
[356923432,1743434823665,1369.72380584,0.00033782,120]
[356923433,1743434833157,-152.35,0.000149,2]
[356923434,1743434836330,329.73053046,0.00033782,120]
[356923435,1743434857343,819.03357032,0.00033782,120]
[356923438,1743434861609,2027.42342474,0.00033782,120]
[356923439,1743434866773,661.53961427,0.00033782,120]
[356923440,1743434869828,1081.80245599,0.00033782,120]
[356923441,1743434874474,368.47413201,0.00033782,30]
[356923442,1743434875665,823.15000061,0.00033782,120]
[356923443,1743434878811,-551.01276628,0.000149,2]
[356923444,1743434878859,-1026.373382,0.00014925,2]
[356923445,1743434878909,-211119.61385172,0.00015,2]
[356923446,1743434883882,652.61685827,0.00033782,30]
[356923447,1743434885575,951.58483737,0.00033782,120]
[356923448,1743434892762,286.18511364,0.00033782,30]
[356923450,1743434909394,352.07371363,0.00033782,120]
[356923451,1743434913906,1282.47979826,0.00033782,120]
[356923452,1743434914091,2030.82673568,0.00033782,120]
[356923454,1743434914884,207.45677681,0.00033782,30]
[356923455,1743434915134,1479.72245995,0.00033782,30]
[356923456,1743434916383,208.19495319,0.00033782,30]
[356923457,1743434916539,890.21661243,0.00033782,120]
[356923458,1743434916762,1000.0,0.00033782,30]
[356923459,1743434917355,1250.80565727,0.00033782,120]
[356923460,1743434917647,429.72630137,0.00033782,90]
[356923461,1743434920071,1293.2201631,0.00033782,120]
[356923462,1743434920164,1098.22927238,0.00033782,120]
[356923463,1743434921137,721.39496202,0.00033782,120]
[356923464,1743434923011,978.52390598,0.00033782,120]
[356923465,1743434923109,177.44356302,0.00033782,120]
[356923466,1743434924036,210.65756092,0.00033782,120]
[356923467,1743434925221,262.28932547,0.00033782,30]
[356923468,1743434925620,507.06735655,0.00033782,120]
[356923469,1743434926475,604.46408418,0.00033782,120]
[356923470,1743434926662,341.5511499,0.00033782,120]
[356923471,1743434929153,179.71960924,0.00033782,30]
[356923476,1743434973483,-161.26831363,0.000149,2]
[356923477,1743434973512,-4.20574757,0.000149,2]
[356923478,1743434977122,-150.0,0.000149,2]
[356923482,1743435004513,-2357.19425659,0.000149,2]
[356923483,1743435005982,-151.16351891,0.000149,2]
[356923499,1743435031607,-1154.94014546,0.000149,2]
[356923500,1743435031619,-1199.03640389,0.000149,2]
[356923501,1743435031758,-557.91271798,0.000149,2]
[356923502,1743435031767,-150.0,0.00014949,2]
[356923503,1743435031777,-242.02924884,0.00014999,2]
[356923504,1743435031791,-257.97075116,0.00014999,2]
[356923505,1743435031801,-292.08728202,0.00014999,2]
[356923506,1743435031818,-207.91271798,0.00014999,2]
[356923507,1743435031828,-500.0,0.00014999,2]
[356923508,1743435031837,-500.0,0.00014999,2]
[356923509,1743435031847,-500.0,0.00014999,2]
[356923510,1743435031856,-500.0,0.00014999,2]
[356923511,1743435031866,-295.1303097,0.00014999,2]
[356923512,1743435031876,-500.0,0.00014999,2]
[356923513,1743435031885,-147221.13586384,0.00015,2]
[356923514,1743435031932,-7612.57662504,0.00015,2]
[356923528,1743435037398,-543.83467452,0.00015,2]
[356923529,1743435037436,-8372.77221343,0.00015,2]
[356923530,1743435037473,-892.25232706,0.00015,2]
[356923531,1743435037484,-1249.815,0.00015,2]
[356923532,1743435037511,-73008.57716204,0.00015,2]
[356923533,1743435037677,-646.97163807,0.00015,2]
[356923534,1743435037688,-1388.88086058,0.00015,2]
[356923610,1743435038885,-150.0,0.000149,2]
[356923613,1743435039666,-2064.10237863,0.000149,2]
[356923614,1743435039679,-7940.15567483,0.000149,2]
[356923615,1743435039690,-745539.56731209,0.00015,2]
[356923616,1743435039700,-147741.55073105,0.00015,2]
[356923617,1743435039709,-150.0,0.000151,2]
[356923618,1743435039720,-499.999999,0.000151,2]
[356923619,1743435039730,-1541.71693665,0.000155,2]
[356923620,1743435039739,-150.0,0.0001639,2]
[356923621,1743435039750,-243.92350627,0.00019,2]
[356923622,1743435039761,-5574.45279034,0.00019556,2]
[356923623,1743435039771,-32759.82289528,0.00019999,2]